Cogmind - Beta 11 @@@ ROGUE MODE // 2022.04.10 @ 01:37:26 Player: Alexbot Result: Destroyed by S-27 Virus with Autogun Performance ------------- Evolutions (4) 2000 Regions Visited (19) 3800 Robots Destroyed (145) 725 Value Destroyed (4891) 4891 Prototype IDs (57) 1140 Alien Tech Used (0) 0 Bonus (2702) 2702 TOTAL SCORE: 15258 Bonus ------- High Alert Combat Kills 102 Follower Combat Kills 474 Aligned with FarCom 300 Met Data Miner 300 Destroyed Z-Imprinter 1000 Triggered Deep Caves Wall 500 Exposed GOLEM Chamber 500 Friendly Fire -474 Cogmind --------- Core Integrity 0/850 Matter 180/300 Energy 129/150 System Corruption 2% Temperature Cool (0) Movement Rolling (155) Ox5 Location -5/Proximity Caves Parts ------- > --- POWER (1) -------- Micro Nuclear Core > --- PROPULSION (4) --- Wheel Combat Airjet Combat Airjet > --- UTILITY (8) ------ High-capacity Storage Unit Improved Melee Analysis Suite Microactuators Makeshift Cloaking Device Makeshift Hacking Suite > --- WEAPON (2) ------- Precision Grenade Launcher Longsword +1 > --- INVENTORY (20) --- Xenon Bombardment Thruster Faulty Spectral Analyzer Advanced Terrain Scanner Experimental Terrain Scan Processor Makeshift Transmission Jammer Damper Plating Experimental System Shield Improved Proton Missile Launcher CR-A16's Pointy Stick Fire Trap Fire Trap Fire Trap Peak State ------------ > --- POWER ------------ Zionite Light DM Reactor > --- PROPULSION ------- Cooled Airjet Zionite Glidesys I Zionite Glidesys I Zionite Glidesys II > --- UTILITY ---------- Large Storage Unit Zionite Biocell Experimental Melee Analysis Suite Improved Armor Integrity Analyzer Improved Reaction Control System Zionite Weapon Casing > --- WEAPON ----------- AWS/Gauss > --- INVENTORY -------- Potential Leg Potential Leg Spectral Analyzer Experimental Signal Interpreter Advanced Terrain Scan Processor Experimental Targeting Computer Experimental Targeting Computer Microactuators Microactuators Experimental System Shield Improved EM Pulse Cannon Shock Bomb Launcher Shock Bomb Launcher Longsword +1 CR-A16's Pointy Stick [Rating: 91] Favorites ----------- Power Micro Nuclear Core Engine Ion Engine Power Core Micro Nuclear Core Reactor Cold Fusion Reactor Propulsion Improved Medium Treads Treads Improved Medium Treads Leg Potential Leg Wheel Armored Wheel Hover Unit Cooled Airjet Flight Unit Xenon Bombardment Thruster Utility Microactuators Device Microactuators Storage Large Storage Unit Processor Improved Armor Integrity Analyzer Hackware Makeshift Hacking Suite Protection Improved Utility Shielding Weapon Longsword +1 Energy Gun EM Pulse Gun Energy Cannon Compact Ion Cannon Ballistic Gun Heavy Assault Rifle Ballistic Cannon Hypervelocity Mass Driver Launcher Precision Grenade Launcher Special Weapon Remote Datajack Slashing Weapon Longsword +1 Piercing Weapon Heavy Pick Special Melee Weapon Improved Datajack Build | -11 -10 -10 -9 -9 -9 -8 -8 -7 -7 -7 -7 -6 -6 -6 -6 -6 -6 -6 -5 ------- Run | Scr Mat Min Mat Min Exi Min Mat Fac Low Zio Dee Pro Fac Was Fac Low Low Dat Pro Slots Evolved 8 | . . . 2 . . . 2 2 . . . . 2 . . . . . . Power . | . . . . . . . . . . . . . . . . . . . . Propulsion 2 | . . . . . . . . 2 . . . . . . . . . . . Utility 6 | . . . 2 . . . 2 . . . . . 2 . . . . . . Weapon . | . . . . . . . . . . . . . . . . . . . . Parts Attached 256 | . . . 8 . 2 4 31 19 3 9 55 3 34 10 51 2 9 4 12 Power 20 | . . . 1 . . . 3 3 . . 3 . 2 2 3 . 2 . 1 Engine 2 | . . . 1 . . . . 1 . . . . . . . . . . . Core 13 | . . . . . . . 3 2 . . 1 . 1 . 3 . 2 . 1 Reactor 5 | . . . . . . . . . . . 2 . 1 2 . . . . . Propulsion 60 | . . . 2 . . 1 10 6 . 2 15 . 8 3 10 . . . 3 Treads 11 | . . . . . . . 3 1 . . . . 2 . 4 . . . 1 Leg 12 | . . . . . . . 4 . . 1 4 . 1 2 . . . . . Wheel 16 | . . . 2 . . 1 3 1 . . . . 5 1 2 . . . 1 Hover 20 | . . . . . . . . 4 . 1 11 . . . 4 . . . . Flight 1 | . . . . . . . . . . . . . . . . . . . 1 Utility 101 | . . . 3 . . 2 5 7 1 4 22 3 11 2 30 . 3 2 6 Device 56 | . . . 1 . . 1 4 2 1 . 5 2 5 . 26 . 3 2 4 Storage 11 | . . . 1 . . . . 2 . 1 4 . . 1 2 . . . . Processor 8 | . . . . . . 1 . 3 . 2 . . 1 . . . . . 1 Hackware 1 | . . . . . . . . . . . . . 1 . . . . . . Protection 25 | . . . 1 . . . 1 . . 1 13 1 4 1 2 . . . 1 Artifact . | . . . . . . . . . . . . . . . . . . . . Weapon 75 | . . . 2 . 2 1 13 3 2 3 15 . 13 3 8 2 4 2 2 Energy Gun 7 | . . . 1 . . . 4 . . . 2 . . . . . . . . Energy Cannon 14 | . . . . . . . 1 1 . 1 4 . 6 . 1 . . . . Ballistic Gun 8 | . . . 1 . 1 1 2 . . 1 2 . . . . . . . . Ballistic Cannon 1 | . . . . . . . . . . . . . . 1 . . . . . Launcher 17 | . . . . . . . 4 . 1 . 4 . 2 2 2 . 1 . 1 Special Weapon 1 | . . . . . . . . . . . . . 1 . . . . . . Impact Weapon . | . . . . . . . . . . . . . . . . . . . . Slashing Weapon 17 | . . . . . 1 . 2 1 1 . 3 . 3 . 3 . 1 1 1 Piercing Weapon 9 | . . . . . . . . . . 1 . . 1 . 2 2 2 1 . Special Melee Weapon 1 | . . . . . . . . 1 . . . . . . . . . . . Unidentified Prototypes 20 | . . . . . 1 . . 3 1 1 10 . 3 . 1 . . . . Corrupted Parts 2 | . . . . . . . 1 . . . 1 . . . . . . . . System Corruption 3 | . . . . . . . 1 . . . 2 . . . . . . . . Parts Lost 57 | . . . 2 . . . 13 . . . 21 3 6 . 3 1 . 4 4 Power 4 | . . . . . . . 2 . . . 1 . 1 . . . . . . Propulsion 17 | . . . . . . . 3 . . . 6 1 2 . 2 . . 2 1 Utility 26 | . . . 1 . . . 2 . . . 12 2 2 . 1 1 . 2 3 Weapon 10 | . . . 1 . . . 6 . . . 2 . 1 . . . . . . Highest Loss Streak 9 | . . . 1 . . . 8 . . . 9 1 2 . 3 1 . 4 3 To Critical Strikes . | . . . . . . . . . . . . . . . . . . . . Average Slot Usage (%) 84 | . 85 85 76 77 76 89 88 93 76 78 77 87 80 97 92 67 69 76 70 Engine 1 | . 14 14 11 11 11 11 3 . . . . . . . . . . . . Core 3 | . . . . . . . 3 6 7 7 3 7 . . 4 6 5 5 5 Reactor 1 | . . . . . . . . . . . 2 . 5 6 1 . . . . Treads 4 | . . . . . . . . 7 . . . . 4 2 11 . . . 3 Leg 2 | . 28 28 2 . . . 1 . . . 4 15 4 12 . . . . . Wheel 7 | . . . 20 22 22 22 13 1 . . . . 7 10 7 . . . 4 Hover 7 | . . . . . . . . 19 30 30 20 6 . . . 26 26 26 13 Device 14 | . . . 8 11 11 17 28 18 7 6 3 11 16 13 18 6 7 15 4 Storage 7 | . 14 14 11 11 11 11 9 8 7 7 10 7 6 12 6 6 6 6 6 Processor 10 | . . . . . . 5 9 14 15 16 13 7 6 13 13 6 6 6 9 Hackware 3 | . . . . . . . . . . . . . 5 6 6 6 6 6 6 Protection 4 | . . . 2 . . . . . . . 9 15 6 4 7 6 6 5 3 Energy Gun 1 | . . . 3 11 11 11 6 . . . . 7 . . . . . . . Ballistic Gun 2 | . 28 28 18 11 5 11 7 . . . 2 . . . . . . . . Launcher 1 | . . . . . . . 1 2 1 . 1 . . 7 1 . . . 4 Slashing Weapon 3 | . . . . . 4 . 1 4 5 6 . 7 5 1 5 . . . 4 Piercing Weapon 1 | . . . . . . . . . . . . . . . 5 1 . . . Naked Turns . | . . . . . . . . . . . . . . . . . . . . Heaviest Build 107 | 13 13 13 34 31 31 32 38 45 36 44 46 48 63 57 107 51 54 58 63 Greatest Support 60 | 20 20 20 24 24 24 24 40 60 37 33 60 60 60 60 60 48 48 48 24 Greatest Overweight (x) 6 | . . . 2 1 1 1 3 1 1 1 1 . 3 . 3 1 1 1 6 Average Overweight (x) . | . . . . 1 1 1 1 . . . . . 1 . 2 . . . 3 Largest Inventory Capacity 25 | 8 8 8 15 15 15 15 15 15 15 15 15 15 15 15 25 20 20 20 20 Average Capacity 18 | 8 8 8 14 15 15 15 15 15 15 15 15 15 15 15 24 20 20 20 20 Most Carried 25 | 6 6 6 15 15 15 15 15 15 15 15 15 15 15 15 25 19 19 17 19 Average Carried 17 | 6 6 6 11 14 14 14 14 14 14 14 11 14 14 14 24 16 16 15 17 Final Capacity 20 | 8 8 8 15 15 15 15 15 15 15 15 15 15 15 15 20 20 20 20 20 Final Carried 20 | 6 6 6 15 14 15 15 15 15 15 15 14 14 15 15 20 19 17 17 15 Class Distribution -------------------- 66% | Mutant 12% | Scavenger-Mutant 7% | Skirmisher 7% | Machinist-Mutant 5% | Scout Dominant Class ---------------- Mutant | -10/Materials Mutant | -10/Mines Mutant | -9/Materials Mutant | -9/Mines Mutant | -9/Exiles Skirmisher | -8/Mines Skirmisher | -8/Materials Mutant | -7/Factory Scout | -7/Lower Caves Scout | -7/Zion Scavenger-Mutant | -7/Deep Caves Mutant | -6/Proximity Caves Mutant | -6/Factory Mutant | -6/Waste Mutant | -6/Factory Machinist-Mutant | -6/Lower Caves Machinist-Mutant | -6/Lower Caves Machinist-Mutant | -6/Data Miner Scavenger-Mutant | -5/Proximity Caves Resources | -11 -10 -10 -9 -9 -9 -8 -8 -7 -7 -7 -7 -6 -6 -6 -6 -6 -6 -6 -5 ----------- Run | Scr Mat Min Mat Min Exi Min Mat Fac Low Zio Dee Pro Fac Was Fac Low Low Dat Pro Matter Collected 4190 | 200 . . 297 . . 93 488 231 10 18 635 74 273 579 533 219 302 . 238 Remotely . | . . . . . . . . . . . . . . . . . . . . Salvage Created 7134 | . . 91 598 . . 127 846 160 34 . 1573 147 934 849 1189 92 99 . 395 Parts 313 | . . 4 31 . . 18 53 13 1 . 52 10 49 2 62 . 7 . 11 Haulers Intercepted 4 | . . . 1 . . . 1 1 . . . . . . 1 . . . . Recyclers Shooed 4 | . . . 2 . . . . . . . . . 2 . . . . . . Parts Field Recycled . | . . . . . . . . . . . . . . . . . . . . Retrieved Matter . | . . . . . . . . . . . . . . . . . . . . Parts Self-Destructed 17 | . . . . . . . . . . . . 10 . . . . 4 . 3 Prevented . | . . . . . . . . . . . . . . . . . . . . Kills | -11 -10 -10 -9 -9 -9 -8 -8 -7 -7 -7 -7 -6 -6 -6 -6 -6 -6 -6 -5 ------- Run | Scr Mat Min Mat Min Exi Min Mat Fac Low Zio Dee Pro Fac Was Fac Low Low Dat Pro Combat Hostiles Destroyed 132 | . . 2 8 . . 5 14 3 . . 37 5 20 4 20 . 6 . 8 Melee 41 | . . . . . . . 2 3 . . 1 5 15 . 12 . 3 . . Guns 27 | . . 2 8 . . 5 6 . . . 6 . . . . . . . . Cannons 1 | . . . . . . . . . . . . . 1 . . . . . . AOE 60 | . . . . . . . 6 . . . 27 . 4 4 8 . 3 . 8 Classes Destroyed 22 | . . 1 6 . . 1 2 1 1 . 4 . 1 1 2 . 1 . 1 Worker 9 | . . . 2 . . 1 . 1 . . . . 1 . 4 . . . . Builder 11 | . . . 2 . . 1 6 . . . . . 1 . 1 . . . . Tunneler 1 | . . . . . . . . . . . . . . . 1 . . . . Hauler 4 | . . . 1 . . . 1 1 . . . . . . 1 . . . . Recycler 3 | . . . 1 . . . 2 . . . . . . . . . . . . Minesweeper 1 | . . . . . . . . . . . . . . . . . . . 1 Watcher 9 | . . . 2 . . . 2 . . . . . 2 . 3 . . . . Swarmer 33 | . . . . . . 5 5 2 . . . 4 5 . 5 . 4 . 3 Grunt 27 | . . 2 6 . . . 4 . . . . . 6 . 4 . . . 5 Brawler 1 | . . . . . . . . . . . . . . . 1 . . . . Sentry 11 | . . . 2 . . . 3 . . . . . 2 . 4 . . . . Hunter 5 | . . . . . . . 1 . . . . . 2 . 2 . . . . Programmer 10 | . . . . . . . . 1 . . . 1 4 . 4 . . . . Heavy 1 | . . . . . . . 1 . . . . . . . . . . . . Behemoth 1 | . . . . . . . . . . . . . 1 . . . . . . Compactor 4 | . . . . . . . . . . . . . . 4 . . . . . Z-Technician 3 | . . . . . . . . . . . 3 . . . . . . . . Z-Light 8 | . . . . . . . . . . . 8 . . . . . . . . Packrat 1 | . . . . . . . . . . . . . . . . 1 . . . Samaritan 1 | . . . . . . . . . 1 . . . . . . . . . . Thief 1 | . . . . . . . . . . . . . . . . . 1 . . Master Thief 1 | . . . . . . . . . . . . . . . . . 1 . . Assembled 26 | . . . . . . . . . . . 26 . . . . . . . . Golem 2 | . . . . . . . . . . . 2 . . . . . . . . Wasp 2 | . . . . . . . . . . . . . . . 2 . . . . Best Kill Streak 27 | . . 2 6 . . 3 6 2 . . 27 4 6 2 5 . 3 . 5 Combat Bots Only 27 | . . 2 4 . . 3 3 2 . . 27 4 5 2 3 . 3 . 5 Max Kills in Single Turn 11 | . . 1 2 . . 1 3 1 1 . 11 1 4 1 3 1 3 . 2 Gunslinging . | . . . . . . . . . . . . . . . . . . . . Exploded 11 | . . . . . . . 2 . . . 11 . 3 1 2 . 3 . 2 Melee 1 | . . . . . . . 1 1 . . 1 1 1 . 1 . 1 . . Uniques/NPCs Destroyed 1 | . . . . . . . . . . . 1 . . . . . . . . Z-Imprinter (-7/Deep Caves) Combat | -11 -10 -10 -9 -9 -9 -8 -8 -7 -7 -7 -7 -6 -6 -6 -6 -6 -6 -6 -5 -------- Run | Scr Mat Min Mat Min Exi Min Mat Fac Low Zio Dee Pro Fac Was Fac Low Low Dat Pro Damage Taken 11303 | . . 111 576 . . 57 1757 82 . . 3607 375 2022 16 1104 13 377 792 414 Core 2155 | . . 15 165 . . 16 404 49 . . 637 11 154 . 166 . 78 352 108 Absorbed by Shields 115 | . . . . . . . . . . . . . . . 115 . . . . Redirected to Shielding 504 | . . . . . . . . . . . 308 . . . 105 7 56 28 . Regen/Repaired (Parts) 273 | . . . . . . . . . . 75 . . . . 198 . . . . Core Remaining (%) 54 | 100 . 94 . . . 54 26 . . . . . . . . . . . . Volleys Fired 261 | . . 7 57 . . 11 82 2 . 2 33 1 19 27 10 . 1 . 9 Largest 2 | . . 2 2 . . 2 2 1 . 1 2 1 2 2 1 . 1 . 1 Hottest 159 | . . 40 63 . . 63 91 69 . 69 72 60 159 72 36 . 36 . 36 Shots Fired 465 | . . 14 111 . . 22 135 2 . 2 99 1 21 38 10 . 1 . 9 Gun 328 | . . 14 111 . . 22 121 . . . 59 1 . . . . . . . Cannon 58 | . . . . . . . 9 2 . 2 15 . 19 11 . . . . . Launcher 78 | . . . . . . . 5 . . . 25 . 1 27 10 . 1 . 9 Special 1 | . . . . . . . . . . . . . 1 . . . . . . Kinetic 260 | . . 14 91 . . 11 77 . . . 56 . . 11 . . . . . Thermal 28 | . . . . . . . 20 . . . . . 8 . . . . . . Explosive 52 | . . . . . . . 4 . . . . . 1 27 10 . 1 . 9 Electromagnetic 120 | . . . 20 . . 11 34 2 . 2 40 . 11 . . . . . . Phasic 4 | . . . . . . . . . . . 3 1 . . . . . . . Robot Hit Streak 14 | . . 10 14 . . 7 11 11 . . 8 . 14 12 5 . 1 . 2 Robot Miss Streak 11 | . . 1 3 . . 3 4 . . . 11 . 1 1 1 . . . . Penetration Max . | . . . . . . . . . . . . . . . . . . . . Secondary Targets 2 | . . 1 . . . 1 . . . . . . . . . . . . . Max Gunslinging Chain 1 | . . 1 . . . 1 . . . . . . . . . . . . . Autonomous 56 | . . . . . . . . . . . 56 . . . . . . . . Shots Hit Robots 427 | . . 11 80 . . 12 97 9 2 . 47 6 68 26 47 3 12 1 6 Core Hits 316 | . . 7 30 . . 7 41 3 . . 97 4 31 11 53 1 9 . 22 Critical Kills . | . . . . . . . . . . . . . . . . . . . . Critical Parts Destroyed 5 | . . . . . . . 1 . . . . . . 4 . . . . . Critical Strikes 25 | . . . . . . . 2 . . . . . 9 7 6 . . . 1 Destroy 8 | . . . . . . . 1 . . . . . . 7 . . . . . Sever 15 | . . . . . . . 1 . . . . . 8 . 5 . . . 1 Impale 2 | . . . . . . . . . . . . . 1 . 1 . . . . Melee Attacks 238 | . . . . . . . 7 14 3 7 6 6 69 1 88 8 23 1 5 Impact . | . . . . . . . . . . . . . . . . . . . . Slashing 188 | . . . . . . . 7 14 3 7 6 6 64 1 72 . 3 . 5 Piercing 50 | . . . . . . . . . . . . . 5 . 16 8 20 1 . Sneak Attacks 21 | . . . . . . . 1 5 2 . 2 . 2 . 6 1 . 1 1 Combat Hostiles 3 | . . . . . . . . 2 . . . . 1 . . . . . . Follow-up Attacks 5 | . . . . . . . . . . . . . 2 . 3 . . . . Damage Inflicted 20707 | . . 115 949 . . 199 2214 600 163 . 3657 277 4131 2607 3547 114 607 70 1457 Guns 3238 | . . 115 949 . . 199 1081 . . . 894 . . . . . . . . Cannons 948 | . . . . . . . 125 60 . . 230 . 356 177 . . . . . Explosions 9072 | . . . . . . . 635 . . . 2092 . 1398 2430 1272 . 194 . 1051 Melee 7449 | . . . . . . . 373 540 163 . 441 277 2377 . 2275 114 413 70 406 Ramming . | . . . . . . . . . . . . . . . . . . . . Kinetic 2805 | . . 115 716 . . 113 790 . . . 894 . . 177 . . . . . Thermal 1863 | . . . . . . . 290 . . . 318 . 1255 . . . . . . Explosive 5661 | . . . . . . . 437 . . . . . 277 2430 1272 . 194 . 1051 Electromagnetic 2929 | . . . 233 . . 86 324 60 . . 2004 . 222 . . . . . . Impact . | . . . . . . . . . . . . . . . . . . . . Slashing 6808 | . . . . . . . 373 540 163 . 441 277 2273 . 2189 . 146 . 406 Piercing 641 | . . . . . . . . . . . . . 104 . 86 114 267 70 . Highest Corruption 10 | . . . . . . . 1 1 1 1 10 10 2 . 5 1 1 1 2 Average Corruption 3 | . . . . . . . 1 1 1 1 8 10 1 . 3 1 1 1 1 Corruption Purged 9 | . . . . . . . . . . . . . 3 . 5 . . 1 . Corruption Blocked . | . . . . . . . . . . . . . . . . . . . . Effects 57 | . . . . . . . . . . . 11 7 . . 33 2 4 . . Message Errors 16 | . . . . . . . . . . . 3 3 . . 10 . . . . Matter Fused 13 | . . . . . . . . . . . 2 1 . . 9 . 1 . . Heat Flow Errors 7 | . . . . . . . . . . . 2 . . . 5 . . . . Energy Discharges 7 | . . . . . . . . . . . 1 1 . . 2 2 1 . . Parts Rejected 1 | . . . . . . . . . . . 1 . . . . . . . . Data Loss (minor) 6 | . . . . . . . . . . . 2 1 . . 3 . . . . Data Loss (major) 5 | . . . . . . . . . . . . . . . 3 . 2 . . Alerts 1 | . . . . . . . . . . . . . . . 1 . . . . Misdirections 1 | . . . . . . . . . . . . 1 . . . . . . . Overload Shots . | . . . . . . . . . . . . . . . . . . . . Overflow Damage 1301 | . . . . . . . 90 144 97 . 138 21 366 . 222 58 20 10 135 Projectiles 15 | . . . . . . . . . . . 15 . . . . . . . . Explosions 272 | . . . . . . . 17 . . . 12 . 183 . 5 . . . 55 Melee 1014 | . . . . . . . 73 144 97 . 111 21 183 . 217 58 20 10 80 Knockbacks . | . . . . . . . . . . . . . . . . . . . . Impact . | . . . . . . . . . . . . . . . . . . . . Kinetic . | . . . . . . . . . . . . . . . . . . . . Secondary . | . . . . . . . . . . . . . . . . . . . . Self-Inflicted Damage 267 | . . . . . . . 71 . . . 62 . 60 16 42 . . . 16 Shots 10 | . . . . . . . 3 . . . 3 . 1 1 1 . . . 1 Rammed . | . . . . . . . . . . . . . . . . . . . . Targets Rammed . | . . . . . . . . . . . . . . . . . . . . Kicked . | . . . . . . . . . . . . . . . . . . . . Crushed . | . . . . . . . . . . . . . . . . . . . . Highest Temperature 246 | . . 27 60 . . . 162 28 . 16 246 16 208 . 166 . . . . Average Temperature 56 | . . 14 20 . . . 57 28 . 12 79 12 77 . 67 . . . . Received Heat Transfer 1957 | . . 84 258 . . . 486 . . . 564 60 294 . 127 . 24 . 60 Effects 2 | . . . . . . . . . . . 2 . . . . . . . . Energy Bleed 1 | . . . . . . . . . . . 1 . . . . . . . . Interference 1 | . . . . . . . . . . . 1 . . . . . . . . Siege Activations . | . . . . . . . . . . . . . . . . . . . . Robots Corrupted 3 | . . . . . . . . . . . 3 . . . . . . . . Combat Hostiles 3 | . . . . . . . . . . . 3 . . . . . . . . Parts Fried 14 | . . . . . . . . 2 . . 11 . 1 . . . . . . Impact Corruptions . | . . . . . . . . . . . . . . . . . . . . Robots Melted . | . . . . . . . . . . . . . . . . . . . . Combat Hostiles . | . . . . . . . . . . . . . . . . . . . . Parts Melted . | . . . . . . . . . . . . . . . . . . . . Heat Transferred 1792 | . . . . . . . 507 . . . 350 . 935 . . . . . . Parts Sabotaged . | . . . . . . . . . . . . . . . . . . . . Parts Stolen 7 | . . . . . . . . . . . . . . . . 3 4 . . Parts Stripped . | . . . . . . . . . . . . . . . . . . . . Power Chain Reactions 3 | . . . . . . . 1 . . . 2 . . . . . . . . Missiles Intercepted . | . . . . . . . . . . . . . . . . . . . . Alert | -11 -10 -10 -9 -9 -9 -8 -8 -7 -7 -7 -7 -6 -6 -6 -6 -6 -6 -6 -5 ------- Run | Scr Mat Min Mat Min Exi Min Mat Fac Low Zio Dee Pro Fac Was Fac Low Low Dat Pro Peak Influence 535 | . . 50 278 34 . 205 382 190 . . . . 535 209 433 . . . . Initial 170 | . . . 19 34 . . 35 127 . . . . 81 170 132 . . . . Average 185 | . . 31 93 34 . 143 202 137 . . . . 266 196 189 . . . . Maximum Alert Level 2 | . . . 1 . . 1 1 . . . . . 2 1 2 . . . . Low Security (%) 63 | 100 100 100 85 100 . 37 48 100 . . . . 47 55 65 . . . . Level 1 29 | . . . 14 . . 62 51 . . . . . 27 44 27 . . . . Level 2 7 | . . . . . . . . . . . . . 24 . 7 . . . . Level 3 . | . . . . . . . . . . . . . . . . . . . . Level 4 . | . . . . . . . . . . . . . . . . . . . . Level 5 . | . . . . . . . . . . . . . . . . . . . . High Security . | . . . . . . . . . . . . . . . . . . . . Max Security . | . . . . . . . . . . . . . . . . . . . . Squads Dispatched 28 | . . . 1 . . . 2 5 . . . . 9 . 11 . . . . Investigation 9 | . . . . . . . . 2 . . . . 3 . 4 . . . . Extermination 8 | . . . . . . . . 1 . . . . 3 . 4 . . . . Reinforcement 10 | . . . 1 . . . 2 2 . . . . 3 . 2 . . . . Assault 1 | . . . . . . . . . . . . . . . 1 . . . . Garrison . | . . . . . . . . . . . . . . . . . . . . Intercept . | . . . . . . . . . . . . . . . . . . . . Searches Triggered . | . . . . . . . . . . . . . . . . . . . . Construction Impeded . | . . . . . . . . . . . . . . . . . . . . Haulers Reinforced 3 | . . . . . . . . 2 . . . . 1 . . . . . . Active Scanning Responses . | . . . . . . . . . . . . . . . . . . . . Cargo Convoy Interrupts 1 | . . . . . . . . . . . . . 1 . . . . . . Stealth | -11 -10 -10 -9 -9 -9 -8 -8 -7 -7 -7 -7 -6 -6 -6 -6 -6 -6 -6 -5 --------- Run | Scr Mat Min Mat Min Exi Min Mat Fac Low Zio Dee Pro Fac Was Fac Low Low Dat Pro Distress Signals 9 | . . . 2 . . . 2 2 . . . . 3 . . . . . . Communications Jammed 7 | . . . . . . . . . . . . . . . 7 . . . . Distress Signals 7 | . . . . . . . . . . . . . . . 7 . . . . Times Spotted 228 | . . 2 16 . . 9 23 13 . . 61 9 25 6 35 4 10 4 11 Peak Tracking Total 40 | . . 2 6 . . 4 7 5 . . 40 4 5 2 6 2 5 4 6 Tactical Retreats 13 | . . . . . . . . 2 . . 6 1 3 . . . 1 . . Traps | -11 -10 -10 -9 -9 -9 -8 -8 -7 -7 -7 -7 -6 -6 -6 -6 -6 -6 -6 -5 ------- Run | Scr Mat Min Mat Min Exi Min Mat Fac Low Zio Dee Pro Fac Was Fac Low Low Dat Pro Traps Triggered 7 | . . . . . . . . 2 . . . . 3 . 2 . . . . Indirectly . | . . . . . . . . . . . . . . . . . . . . Trap Hack Attempts . | . . . . . . . . . . . . . . . . . . . . Triggered . | . . . . . . . . . . . . . . . . . . . . Disarmed . | . . . . . . . . . . . . . . . . . . . . Reprogrammed . | . . . . . . . . . . . . . . . . . . . . Reused . | . . . . . . . . . . . . . . . . . . . . Traps Extracted . | . . . . . . . . . . . . . . . . . . . . Installed . | . . . . . . . . . . . . . . . . . . . . Triggered 4 | . . . . . . . . . . . . . 4 . . . . . . Most Traps Carried 3 | . . . . . . . . . . . . . . . . . . . 3 Machines | -11 -10 -10 -9 -9 -9 -8 -8 -7 -7 -7 -7 -6 -6 -6 -6 -6 -6 -6 -5 ---------- Run | Scr Mat Min Mat Min Exi Min Mat Fac Low Zio Dee Pro Fac Was Fac Low Low Dat Pro Machines Disabled 7 | . . . . . . . 2 . . . 1 . 4 . . . . . . Max in Single Turn 4 | . . . . . . . 1 . . . 1 . 4 . . . . . . Garrison Access 2 | . . . . . . . . . . . . . 1 . 1 . . . . Machines Sabotaged . | . . . . . . . . . . . . . . . . . . . . Garrisons Compromised 1 | . . . . . . . . . . . . . 1 . . . . . . Overloaded Fab Kills . | . . . . . . . . . . . . . . . . . . . . Hacking | -11 -10 -10 -9 -9 -9 -8 -8 -7 -7 -7 -7 -6 -6 -6 -6 -6 -6 -6 -5 --------- Run | Scr Mat Min Mat Min Exi Min Mat Fac Low Zio Dee Pro Fac Was Fac Low Low Dat Pro Machines Accessed 37 | . . . 1 . 2 . 2 6 . . . . 6 . 15 . 1 4 . Terminals 17 | . . . 1 . . . 2 4 . . . . 4 . 6 . . . . Fabricators 6 | . . . . . . . . 1 . . . . . . 5 . . . . Repair Stations 2 | . . . . . . . . . . . . . . . 2 . . . . Recycling Units . | . . . . . . . . . . . . . . . . . . . . Scanalyzers 2 | . . . . . . . . . . . . . 1 . 1 . . . . Garrison Access 3 | . . . . . . . . 1 . . . . 1 . 1 . . . . Total Hacks 109 | . . . 3 . 2 . 3 12 . . . . 19 . 40 . 1 29 . Successful 79 | . . . 1 . 2 . 1 3 . . . . 15 . 27 . 1 29 . Failed 30 | . . . 2 . . . 2 9 . . . . 4 . 13 . . . . Catastrophic 7 | . . . . . . . 2 4 . . . . . . 1 . . . . Database Lockouts . | . . . . . . . . . . . . . . . . . . . . Manual 31 | . . . 3 . 1 . 2 7 . 1 . . 6 . 11 . . . . Terminals 44 | . . . 3 . . . 3 8 . . . . 14 . 16 . . . . Fabricators 12 | . . . . . . . . 2 . . . . . . 10 . . . . Repair Stations 9 | . . . . . . . . . . . . . . . 9 . . . . Recycling Units . | . . . . . . . . . . . . . . . . . . . . Scanalyzers 8 | . . . . . . . . . . . . . 4 . 4 . . . . Garrison Access 4 | . . . . . . . . 2 . . . . 1 . 1 . . . . Terminal Hacks 47 | . . . 1 . 2 . 1 1 . . . . 6 . 6 . 1 29 . Record 12 | . . . . . 1 . . . . . . . . . . . . 11 . Part Schematic 12 | . . . . . . . . . . . . . 1 . 1 . . 10 . Robot Schematic 5 | . . . . . . . . . . . . . . . . . . 5 . Prototype ID Bank 3 | . . . . . . . . . . . . . . . . . . 3 . Open Door 1 | . . . . . . . . . . . . . . . . . 1 . . Branch Access Points 5 | . . . 1 . . . 1 1 . . . . 1 . 1 . . . . Unreport Threat 1 | . . . . . . . . . . . . . . . 1 . . . . Locate Traps 1 | . . . . . . . . . . . . . 1 . . . . . . Hauler Manifests 2 | . . . . . . . . . . . . . 1 . 1 . . . . Zone Layout 4 | . . . . . . . . . . . . . 2 . 2 . . . . EX-Prototype ID Bank 1 | . . . . . 1 . . . . . . . . . . . . . . Fabricator Hacks 9 | . . . . . . . . 1 . . . . . . 8 . . . . Network Status 3 | . . . . . . . . 1 . . . . . . 2 . . . . Load Schematic 3 | . . . . . . . . . . . . . . . 3 . . . . Build 3 | . . . . . . . . . . . . . . . 3 . . . . Repair Station Hacks 6 | . . . . . . . . . . . . . . . 6 . . . . Scan Component 3 | . . . . . . . . . . . . . . . 3 . . . . Repair 3 | . . . . . . . . . . . . . . . 3 . . . . Recycling Unit Hacks . | . . . . . . . . . . . . . . . . . . . . Scanalyzer 7 | . . . . . . . . . . . . . 4 . 3 . . . . Insert Component 5 | . . . . . . . . . . . . . 3 . 2 . . . . Analyze 2 | . . . . . . . . . . . . . 1 . 1 . . . . Garrison Access Hacks 2 | . . . . . . . . . . . . . 1 . 1 . . . . Seal Access 2 | . . . . . . . . . . . . . 1 . 1 . . . . Unauthorized Hacks 8 | . . . . . . . . 1 . . . . 4 . 3 . . . . Terminals 7 | . . . . . . . . 1 . . . . 4 . 2 . . . . Track 1 | . . . . . . . . . . . . . 1 . . . . . . Botnet 5 | . . . . . . . . 1 . . . . 2 . 2 . . . . Operators 1 | . . . . . . . . . . . . . 1 . . . . . . Fabricators 1 | . . . . . . . . . . . . . . . 1 . . . . Recompile 1 | . . . . . . . . . . . . . . . 1 . . . . Repair Stations . | . . . . . . . . . . . . . . . . . . . . Recycling Units . | . . . . . . . . . . . . . . . . . . . . Scanalyzers . | . . . . . . . . . . . . . . . . . . . . Garrison Access . | . . . . . . . . . . . . . . . . . . . . Data Cores Recovered . | . . . . . . . . . . . . . . . . . . . . Used . | . . . . . . . . . . . . . . . . . . . . Hacking Detections 25 | . . . 1 . . . 1 6 . . . . 5 . 12 . . . . Full Trace Events 5 | . . . . . . . . 1 . . . . 1 . 3 . . . . Feedback Events . | . . . . . . . . . . . . . . . . . . . . Feedback Blocked . | . . . . . . . . . . . . . . . . . . . . Robot Schematics Acquired 9 | . . . . . . . . . . 4 . . . . . . . 5 . Robots Built . | . . . . . . . . . . . . . . . . . . . . Authchips . | . . . . . . . . . . . . . . . . . . . . Time . | . . . . . . . . . . . . . . . . . . . . Total Robot Build Rating . | . . . . . . . . . . . . . . . . . . . . Part Schematics Acquired 29 | . . . . . . . . . . 15 . . 2 . 2 . . 10 . Parts Built 5 | . . . . . . . . . . . . . . . 5 . . . . Authchips . | . . . . . . . . . . . . . . . . . . . . Time 221 | . . . . . . . . . . . . . . . 221 . . . . Total Part Build Rating 25 | . . . . . . . . . . . . . . . 25 . . . . Parts Repaired 3 | . . . . . . . . . . . . . . . 3 . . . . Time 230 | . . . . . . . . . . . . . . . 230 . . . . Parts Recycled . | . . . . . . . . . . . . . . . . . . . . Recycled Matter . | . . . . . . . . . . . . . . . . . . . . Retrieved Matter . | . . . . . . . . . . . . . . . . . . . . Retrieved Components . | . . . . . . . . . . . . . . . . . . . . Parts Scanalyzed 2 | . . . . . . . . . . . . . 1 . 1 . . . . Part Schematics Acquired 2 | . . . . . . . . . . . . . 1 . 1 . . . . Parts Damaged 1 | . . . . . . . . . . . . . 1 . . . . . . Bothacking | -11 -10 -10 -9 -9 -9 -8 -8 -7 -7 -7 -7 -6 -6 -6 -6 -6 -6 -6 -5 ------------ Run | Scr Mat Min Mat Min Exi Min Mat Fac Low Zio Dee Pro Fac Was Fac Low Low Dat Pro Used RIF Installer . | . . . . . . . . . . . . . . . . . . . . Robots Hacked 1 | . . . . . . . . . . . . . 1 . . . . . . Non-combat 1 | . . . . . . . . . . . . . 1 . . . . . . Combat . | . . . . . . . . . . . . . . . . . . . . Robot Hacks Applied 1 | . . . . . . . . . . . . . 1 . . . . . . find_chute 1 | . . . . . . . . . . . . . 1 . . . . . . Relay Couplers Released 4 | . . . . . . . . . . . . . . . 4 . . . . Programmers 4 | . . . . . . . . . . . . . . . 4 . . . . Fabnet Peak Effective % . | . . . . . . . . . . . . . . . . . . . . Robots Rewired . | . . . . . . . . . . . . . . . . . . . . Allies Hacked . | . . . . . . . . . . . . . . . . . . . . Hacks Repelled . | . . . . . . . . . . . . . . . . . . . . Allies | -11 -10 -10 -9 -9 -9 -8 -8 -7 -7 -7 -7 -6 -6 -6 -6 -6 -6 -6 -5 -------- Run | Scr Mat Min Mat Min Exi Min Mat Fac Low Zio Dee Pro Fac Was Fac Low Low Dat Pro Total Allies 22 | . . . . 3 . . . . . . . . . 19 . . . . . Largest Group 19 | . . . . 3 3 3 3 . . . . . . 19 8 . . . . Highest-Rated Group 702 | . . . . 40 40 40 40 . . . . . . 702 265 . . . . Highest-Rated Ally 50 | . . . . 16 16 16 16 . . . . . . 50 50 . . . . Total Orders . | . . . . . . . . . . . . . . . . . . . . Ally Attacks 198 | . . . . . . 16 15 . . . . . . 73 94 . . . . Total Damage 3385 | . . . . . . 137 143 . . . . . . 1544 1561 . . . . Kills 20 | . . . . . . 5 2 . . . . . . 2 11 . . . . Allies Corrupted . | . . . . . . . . . . . . . . . . . . . . Allies Melted . | . . . . . . . . . . . . . . . . . . . . Intel | -11 -10 -10 -9 -9 -9 -8 -8 -7 -7 -7 -7 -6 -6 -6 -6 -6 -6 -6 -5 ------- Run | Scr Mat Min Mat Min Exi Min Mat Fac Low Zio Dee Pro Fac Was Fac Low Low Dat Pro Robot Analysis Total . | . . . . . . . . . . . . . . . . . . . . Derelict Logs Recovered 6 | . . . . . . . . . . 2 . . . . . 2 1 . 1 Drone Launches . | . . . . . . . . . . . . . . . . . . . . Drone Recoveries . | . . . . . . . . . . . . . . . . . . . . Exploration | -11 -10 -10 -9 -9 -9 -8 -8 -7 -7 -7 -7 -6 -6 -6 -6 -6 -6 -6 -5 ------------- Run | Scr Mat Min Mat Min Exi Min Mat Fac Low Zio Dee Pro Fac Was Fac Low Low Dat Pro Turns Passed 10875 | 3 44 74 446 118 252 601 736 610 115 561 1079 167 1321 286 3241 225 381 198 417 Spaces Moved 9081 | 3 37 46 229 103 220 519 388 748 260 1098 1378 328 887 251 1615 267 360 109 235 Core . | . . . . . . . . . . . . . . . . . . . . Treads 127 | . . . . . . . 12 115 . . . . . . . . . . . Legs 1355 | 3 37 46 21 . . . 26 . . . 344 328 259 251 40 . . . . Wheels 3780 | . . . 208 103 220 519 350 . . . . . 628 . 1574 . . . 178 Hover 3819 | . . . . . . . . 633 260 1098 1034 . . . 1 267 360 109 57 Flight . | . . . . . . . . . . . . . . . . . . . . Fastest Speed 26 | 120 120 120 105 105 105 105 90 26 34 38 26 45 90 45 68 68 68 68 140 Average Speed 89 | 120 120 120 110 105 105 105 113 66 38 41 56 45 115 79 141 70 75 124 152 Slowest Speed 330 | 120 120 120 190 105 105 105 330 250 98 98 126 45 145 90 145 138 138 146 216 Overloaded Moves 782 | . . . . . . . . 19 23 . 348 328 . 64 . . . . . Propulsion Burnouts . | . . . . . . . . . . . . . . . . . . . . Robots Hopped . | . . . . . . . . . . . . . . . . . . . . Cave-ins Triggered . | . . . . . . . . . . . . . . . . . . . . Exploration Rate (%) 45 | 2 12 8 22 18 61 97 34 20 49 85 71 58 21 86 45 44 54 77 39 Regions Visited 19 Branch Regions 12 Pre-discovered Areas 5 | . . . . 1 1 . . . . 1 . . . . . . 1 1 . Known Exits Taken 9 | . . . 1 . . . . 1 1 1 . 1 . . 1 1 1 1 . Unknown Exits Taken 8 | 1 1 1 . 1 1 1 1 . . . 1 . . . . . . . . Scrap Searched 12 | . . . . 1 . 3 . . 2 1 . 1 . . . 1 2 . 1 Spaces Dug 55 | . . . . . . . . 5 1 3 2 1 11 1 31 . . . . Terrain Destroyed 392 | . . . . . . . 36 5 1 3 36 1 55 98 84 . 12 . 61 Melee 52 | . . . . . . . . 5 1 3 . . 11 1 31 . . . . Projectile 38 | . . . . . . . . . . . 36 1 1 . . . . . . AOE 302 | . . . . . . . 36 . . . . . 43 97 53 . 12 . 61 Terrain Rammed . | . . . . . . . . . . . . . . . . . . . . Walls Destroyed . | . . . . . . . . . . . . . . . . . . . . Machines Disabled . | . . . . . . . . . . . . . . . . . . . . Actions | -11 -10 -10 -9 -9 -9 -8 -8 -7 -7 -7 -7 -6 -6 -6 -6 -6 -6 -6 -5 --------- Run | Scr Mat Min Mat Min Exi Min Mat Fac Low Zio Dee Pro Fac Was Fac Low Low Dat Pro Total 11285 | 2 36 52 318 113 242 552 537 859 272 1196 1632 341 1133 298 2519 291 440 173 279 Wait 1133 | . . . 5 8 13 14 7 47 . 64 101 3 85 . 690 . 30 54 12 Move 9063 | 2 36 45 228 102 219 518 387 747 259 1097 1377 327 887 250 1614 266 359 108 235 Hop . | . . . . . . . . . . . . . . . . . . . . Pick Up 123 | . . . 11 1 3 3 10 8 2 8 20 1 14 2 22 7 8 . 3 Fast Attach 104 | . . . 6 . 1 1 14 9 1 2 32 . 17 3 12 . 1 . 5 Attach 75 | . . . . . . 1 9 2 . 5 18 1 9 3 7 2 7 4 7 Detach 66 | . . . 3 . 1 . 3 6 3 4 12 . 7 1 12 2 4 5 3 Swap 77 | . . . 2 . 1 2 8 8 2 2 5 2 8 4 32 . 1 . . Drop 147 | . . . 6 2 4 2 10 16 2 5 28 . 21 7 31 6 6 1 . Fire 261 | . . 7 57 . . 11 82 2 . 2 33 1 19 27 10 . 1 . 9 Melee 228 | . . . . . . . 7 14 3 7 6 6 66 1 81 8 23 1 5 Ram . | . . . . . . . . . . . . . . . . . . . . Kick . | . . . . . . . . . . . . . . . . . . . . Crush . | . . . . . . . . . . . . . . . . . . . . Escape Stasis 8 | . . . . . . . . . . . . . . . 8 . . . . Rewire . | . . . . . . . . . . . . . . . . . . . . Trap . | . . . . . . . . . . . . . . . . . . . . Miscellaneous . | . . . . . . . . . . . . . . . . . . . . Route ------- -11/Scrapyard -10/Materials -10/Mines -9/Materials (discovered 2 exits: *Min x2) -9/Mines (discovered 2 exits: *Mat / *Exi) -9/Exiles -8/Mines (discovered 2 exits: *Mat x2) -8/Materials -7/Factory (discovered 4 exits: Sto x2 / *Low x2) -7/Lower Caves -7/Zion (discovered 2 exits: *Dee / [*Pro]) -7/Deep Caves -6/Proximity Caves -6/Factory (discovered 2 exits: *Low x2) -6/Waste -6/Factory (discovered 3 exits: *Fac / *Low x2) -6/Lower Caves -6/Lower Caves (discovered 2 exits: *Fac / *Dat) -6/Data Miner -5/Proximity Caves History --------- Turn | Location | Event 1 | -11/Scrapyard | Discovered new exit (range 1) 4 | -11/Scrapyard | Entered Materials 37 | -10/Materials | Discovered new exit (range 7) 48 | -10/Materials | Entered Mines 60 | -10/Mines | Discovered new exit (range 10) 122 | -10/Mines | Entered Materials 122 | -9/Materials | Evolved 2 slots: Utility x2 234 | -9/Materials | Identified exit to Mines 308 | -9/Materials | Build established: Mutant 568 | -9/Materials | Entered Mines 572 | -9/Mines | Assisted by bots powering up and referring to "LRC-V3" 588 | -9/Mines | Learned location of Storage (-7) 616 | -9/Mines | Met a Derelict bent on vengeance 625 | -9/Mines | Received a Rocket Launcher from a helpful Derelict 656 | -9/Mines | Discovered new exit (range 6) 671 | -9/Mines | Deemed a non-threat by the Exiles lab entrance 672 | -9/Mines | Discovered new exit (range 5) 686 | -9/Mines | Entered Exiles 686 | -9/Exiles | Accompanied by 3 allies 712 | -9/Exiles | Met 8R-AWN 728 | -9/Exiles | Met EX-HEX 760 | -9/Exiles | Met EX-BIN 775 | -9/Exiles | Aligned with FarCom system 776 | -9/Exiles | Given EX-Vault access code 803 | -9/Exiles | Opened EX-Vault 815 | -9/Exiles | Found Potential Leg 817 | -9/Exiles | Found Potential Leg 820 | -9/Exiles | Found AWS/Gauss 822 | -9/Exiles | Found Longsword +1 843 | -9/Exiles | Warned to stay clear of 0b10 Research branches 855 | -9/Exiles | Exiles lab attacked by MAIN.C 884 | -9/Exiles | Learned location of Zion (-7) 915 | -9/Exiles | Discovered new exit (range 10) 938 | -9/Exiles | Stole three prototypes: Longsword +1, Potential Leg, AWS/Gauss 938 | -9/Exiles | Entered Mines 938 | -8/Mines | Accompanied by 3 allies 1484 | -8/Mines | Build established: Skirmisher 1514 | -8/Mines | Discovered new exit (range 9) 1539 | -8/Mines | Discovered new exit (range 13) 1539 | -8/Mines | Entered Materials 1539 | -8/Materials | Accompanied by 3 allies 1539 | -8/Materials | Evolved 2 slots: Utility x2 1900 | -8/Materials | Lost 5 parts (1p2n2w) 2087 | -8/Materials | Discovered new exit (range 16) 2137 | -8/Materials | Core integrity fell below 50% 2207 | -8/Materials | Lost 8 parts (1p1n2u4w) 2226 | -8/Materials | Found Prototype Device 2275 | -8/Materials | Entered Factory 2275 | -7/Factory | Evolved 2 slots: Propulsion x2 2277 | -7/Factory | FarCom data flow suspended 2539 | -7/Factory | Build established: Scavenger-Mutant 2806 | -7/Factory | Identified exit to Storage 2806 | -7/Factory | Identified exit to Lower Caves 2863 | -7/Factory | Build established: Mutant 2885 | -7/Factory | Entered Lower Caves 2887 | -7/Lower Caves | Identified Active Sensor Suite 2995 | -7/Lower Caves | A Derelict revealed a hidden shortcut to a safe place 2999 | -7/Lower Caves | Identified exit to Zion 3000 | -7/Lower Caves | Entered Zion 3067 | -7/Zion | System corruption cleaned by Quarantine Array 3145 | -7/Zion | Received a visual enhancement algorithm 3158 | -7/Zion | Learned location of 1 exit from Proximity Caves 3176 | -7/Zion | Learned location of Armory (-3) 3181 | -7/Zion | Visited the Megawrench Repair Shop 3182 | -7/Zion | Megawrench repaired 5 parts 3203 | -7/Zion | Build established: Scout 3203 | -7/Zion | Learned location of 1 exit from Factory 3284 | -7/Zion | Found CR-A16's Pointy Stick 3325 | -7/Zion | Discovered new exit (range 16) 3460 | -7/Zion | Discovered new exit (range 3) 3462 | -7/Zion | Identified exit to Deep Caves 3484 | -7/Zion | Found Prototype Processor 3485 | -7/Zion | Identified Exp. Melee Analysis Suite 3500 | -7/Zion | Found Prototype Hackware 3502 | -7/Zion | Found Prototype Processor 3505 | -7/Zion | Found Prototype Processor 3510 | -7/Zion | Found Prototype Processor 3515 | -7/Zion | Found Prototype Processor 3561 | -7/Zion | Entered Deep Caves 3666 | -7/Deep Caves | Attacked by Z-Imprinter 3695 | -7/Deep Caves | Destroyed Z-Imprinter 3716 | -7/Deep Caves | Found Prototype Protection 3716 | -7/Deep Caves | Identified Zio. Weapon Casing 3733 | -7/Deep Caves | Found Zio. Weapon Casing 3788 | -7/Deep Caves | Z-Facility disabled 3941 | -7/Deep Caves | Found Zio. Weapon Casing 3952 | -7/Deep Caves | Found Prototype Protection 3952 | -7/Deep Caves | Identified Zio. Heavy Carapace 3955 | -7/Deep Caves | Found Zio. Heavy Carapace 3973 | -7/Deep Caves | Found Zio. Heavy Carapace 4022 | -7/Deep Caves | Build established: Scavenger-Mutant 4075 | -7/Deep Caves | Discovered new exit (range 6) 4148 | -7/Deep Caves | Spotted as-66448 4151 | -7/Deep Caves | Exposed GOLEM chamber 4160 | -7/Deep Caves | Core integrity fell below 50% 4190 | -7/Deep Caves | Lost 3 parts (1n2u) 4234 | -7/Deep Caves | Destroyed as-66448 4258 | -7/Deep Caves | Triggered Deep Caves wall 4261 | -7/Deep Caves | Lost 3 parts (2n1u) 4289 | -7/Deep Caves | Core integrity fell below 20% 4305 | -7/Deep Caves | Destroyed 27 combat bots 4325 | -7/Deep Caves | Lost 9 parts (1p1n5u2w) 4436 | -7/Deep Caves | Found Zio. Weapon Casing 4531 | -7/Deep Caves | System corruption reached 10% 4602 | -7/Deep Caves | Lost 3 parts (1n2u) 4640 | -7/Deep Caves | Entered Proximity Caves 4641 | -6/Proximity Caves | Identified exit to Factory 4731 | -6/Proximity Caves | Attracted the attention of an 0b10 checkpoint 4780 | -6/Proximity Caves | Spotted B-75 Beast 4807 | -6/Proximity Caves | Entered Factory 4807 | -6/Factory | Evolved 2 slots: Utility x2 4808 | -6/Factory | Identified exit to Lower Caves 5068 | -6/Factory | Spotted B-75 Beast 5260 | -6/Factory | Build established: Mutant 5360 | -6/Factory | Destroyed B-75 Beast 5417 | -6/Factory | Identified Exp. Targeting Computer (x2) 5417 | -6/Factory | Identified Exp. Signal Interpreter 5417 | -6/Factory | Identified Exp. System Shield 5558 | -6/Factory | Cargo convoy interrupted 5611 | -6/Factory | Found Hvy. Insulated Plating 6128 | -6/Factory | Sucked down chute 6128 | -6/Factory | Entered Waste 6135 | -6/Waste | Spotted C-40 Crusher 6141 | -6/Waste | Found Prototype Processor 6157 | -6/Waste | Destroyed C-40 Crusher 6164 | -6/Waste | Spotted C-40 Crusher 6179 | -6/Waste | Destroyed C-40 Crusher 6187 | -6/Waste | Spotted C-40 Crusher 6201 | -6/Waste | Spotted C-40 Crusher 6217 | -6/Waste | Destroyed C-40 Crusher 6225 | -6/Waste | Destroyed C-40 Crusher 6240 | -6/Waste | Found Damper Plating 6270 | -6/Waste | Warlord forces began an assault 6288 | -6/Waste | Spotted C-40 Crusher 6301 | -6/Waste | Allies destroyed C-40 Crusher 6330 | -6/Waste | Spotted C-40 Crusher 6339 | -6/Waste | Allies destroyed C-40 Crusher 6404 | -6/Waste | Discovered new exit (range 12) 6414 | -6/Waste | Identified exit to Factory 6414 | -6/Waste | Entered Factory 6414 | -6/Factory | Accompanied by 8 allies 6491 | -6/Factory | Lost 3 parts (2n1u) 7287 | -6/Factory | Fabricated Mak. Transmission Jammer? 7728 | -6/Factory | Fabricated Cmb. Airjet (x2) 7875 | -6/Factory | Fabricated Cmb. Airjet? 8083 | -6/Factory | Discovered new exit (range 16) 8376 | -6/Factory | Repaired Hyp. Mass Driver? 8432 | -6/Factory | Repaired Microactuators 8557 | -6/Factory | Repaired Broken Exp. Signal Interpreter 8627 | -6/Factory | Identified Exp. Terrain Scan Processor 9564 | -6/Factory | First assault squad dispatched 9655 | -6/Factory | Entered Lower Caves 9655 | -6/Lower Caves | Spotted KS-4P5(f) 9655 | -6/Lower Caves | Spotted 3Y-A50(f) 9656 | -6/Lower Caves | Encountered a Master Thief 9656 | -6/Lower Caves | Encountered a Master Thief 9664 | -6/Lower Caves | Exp. Signal Interpreter stolen by Master Thief 9677 | -6/Lower Caves | Hyp. Mass Driver stolen by Master Thief 9710 | -6/Lower Caves | Identified exit to Lower Caves 9715 | -6/Lower Caves | Encountered a Warlord checkpoint 9880 | -6/Lower Caves | Entered another Lower Caves area 9884 | -6/Lower Caves | Fusion Compressor stolen by Master Thief 9903 | -6/Lower Caves | Discovered new exit (range 11) 9904 | -6/Lower Caves | Encountered a Warlord checkpoint 9909 | -6/Lower Caves | Identified exit to Factory 9935 | -6/Lower Caves | Build established: Machinist-Mutant 9938 | -6/Lower Caves | Learned location of Extension (-5) 10082 | -6/Lower Caves | Spotted B-75 Beast 10179 | -6/Lower Caves | Discovered new exit (range 12) 10180 | -6/Lower Caves | Spotted EC-I91(f) 10182 | -6/Lower Caves | Encountered a Master Thief 10182 | -6/Lower Caves | Encountered a Master Thief 10182 | -6/Lower Caves | Encountered a Master Thief 10182 | -6/Lower Caves | Spotted 8C-2VN(f) 10183 | -6/Lower Caves | Encountered a Master Thief 10183 | -6/Lower Caves | Imp. Hardlight Generator stolen by Master Thief 10188 | -6/Lower Caves | Fusion Compressor stolen by Master Thief 10197 | -6/Lower Caves | Spotted 0P-VNW(f) 10204 | -6/Lower Caves | Destroyed 0P-VNW(f) 10224 | -6/Lower Caves | Hvy. Pick stolen by Master Thief 10260 | -6/Lower Caves | Identified exit to Data Miner 10261 | -6/Lower Caves | Entered Data Miner 10314 | -6/Data Miner | Discovered new exit (range 6) 10340 | -6/Data Miner | Met Data Miner 10380 | -6/Data Miner | Learned location of Section 7 (-3) 10380 | -6/Data Miner | Acquired the access code to Warlord's prototype stash 10402 | -6/Data Miner | Received God Mode back door access code from Data Miner 10431 | -6/Data Miner | Data Conduit disabled 10441 | -6/Data Miner | Core integrity fell below 50% 10457 | -6/Data Miner | Identified exit to Proximity Caves 10458 | -6/Data Miner | Core integrity fell below 20% 10459 | -6/Data Miner | Entered Proximity Caves 10463 | -5/Proximity Caves | Learned Factory non-interactive machine intel 10485 | -5/Proximity Caves | Lost 4 parts (2n2u) 10876 | -5/Proximity Caves | Destroyed by S-27 Virus with Autogun Last Messages --------------- 10641_ Acquired 64 matter. 10645_ Acquired Unknown Processor. 10645_ Identified Imp. Melee Analysis Suite. 10647_ Adv. Heat Sink fries itself beyond repair. 10649_ Acquired Imp. Light Armor Plating. 10655_ Sneak attack on YI-V9U(b). 10655_ YI-V9U(b) destroyed. 10657_ Acquired 61 matter. 10660_ Acquired Lgt. Treads. 10868_ P-70 Sage Unknown Energy Gun severed. 10872_ C-30 ARC bursts open, deploying its payload. 10872_ S-27 Virus unfolds itself. 10872_ Lgt. Treads destroyed. 10872_ S-27 Virus destroyed. 10873_ Microactuators destroyed. 10874_ S-27 Virus destroyed. 10874_ Destroyed VTOL Module. 10874_ S-27 Virus destroyed. 10876_ Imp. Light Armor Plating destroyed. 10876_ Discarded Adv. Signal Interpreter. Map ----- +----------------------------------------------------+ | ?????????????????????????????????????????????????? | | ?????????????????????????????????????????????????? | | ?????????????????????????????????????????????????? | | ??????????###?######?????????????????????????????? | | ?????###### ### ##????????????????????????????? | | ?##### #????????????????????????????? | | ## #????????????????????????????? | | #????????????????????????????? | | ## ####?????????????????????????? | | ## #### #?????????????????????????? | | ?# ##??## ##????????????????????????? | | ?# ##????#### #????????????????????????? | | ?## #????????## ##???????????????????????? | | ? $ #????????## #???????????????????????? | | ????????# ###?????????????????????? | | ##+##### ???????# #?????????????????????? | | ???????# #??????# ##????????????????????? | | ???????# ##??????# ##???????????????????? | | ???????# ## #??????## #???????????????????? | | ???????# #?????????# ## #??????????????????? | | ???????? ?????????## ######??????????????????? | | ??????????????????## ###????????????????????? | | ??????????????????# ##???????????????????? | | ??????????????????## #???????????????????? | | ???????????????????## ##???????????????????? | | ????????????????????## @[##????????????????????? | | ?????????????????????## sp #?????????????????????? | | ??????????????????????## p#?????????????????????? | | ???????????????????????# ?????????????????????? | | ??????????????????????? ????????????????????? | | ???????????????????????# #???????????????????? | | ???????????????????????# ##???????????????????? | | ???????????????????????# % ????????????????????? | | ???????????????????????# % ????????????????????? | | ??????????????????????? %[% ???????????????????? | | ??????????????????????? # ???????????????????? | | ???????????????????????#? ???????????????????? | | ?????????????????????????## ??????????????????? | | ???????????????????????????####??????????????????? | | ?????????????????????????????????????????????????? | | ?????????????????????????????????????????????????? | | ?????????????????????????????????????????????????? | | ?????????????????????????????????????????????????? | | ?????????????????????????????????????????????????? | | ?????????????????????????????????????????????????? | | ?????????????????????????????????????????????????? | | ?????????????????????????????????????????????????? | | ?????????????????????????????????????????????????? | | ?????????????????????????????????????????????????? | | ?????????????????????????????????????????????????? | +----------------------------------------------------+ Best States ------------- Heat Dissipation 63 Coolant Potential 65 Energy Generation 27 Energy Capacity 800 Matter Stores 300 Matter Capacity 300 Sight Range 16 Robot Scan Range 20 Terrain Scan Range 16 Terrain Scan Density 85 Jamming Range 14 Cloak Strength 3 Armor Coverage 1200 Resistance: TH 15 Resistance: EM 30 Utility Shielding 66 Weapon Shielding 100 Weapon Cycling 15 Melee Speed Boost 50 Evasion (%) 66 Targeting Accuracy 8 Melee Accuracy 12 Armor Integrity Analysis 40 Recoil Reduction 3 Offensive Hacking 11 Item Schematics ----------------- Mak. Transmission Jammer | -7/Zion | Archive Transmission Jammer | -7/Zion | Archive Shock Absorption System | -7/Zion | Archive Force Field | -7/Zion | Archive Wave Gun | -7/Zion | Archive Armor Integrity Analyzer | -7/Zion | Archive Adv. Sensor Array | -7/Zion | Archive Lightning Gun | -7/Zion | Archive Fusion Compressor | -7/Zion | Archive Mak. Axe | -7/Zion | Archive Matter Compressor | -7/Zion | Archive Hvy. Battle Rifle | -7/Zion | Archive Fission Core | -7/Zion | Archive Plasma Cannon | -7/Zion | Archive Mass Driver | -7/Zion | Archive Imp. Fusion Compressor | -6/Factory | Hacked Exp. Signal Interpreter | -6/Factory | Scanalyzed Cmb. Airjet | -6/Factory | Hacked Exp. System Shield | -6/Factory | Scanalyzed Combat Drone Bay | -6/Data Miner | Free Lgt. Regenerative Plating | -6/Data Miner | Free Enh. Armored Leg | -6/Data Miner | Free Imp. Thermal Defense Suite | -6/Data Miner | Free Cld. Plasma Rifle | -6/Data Miner | Free Impulse Thruster | -6/Data Miner | Free Imp. Phase Shifter | -6/Data Miner | Free Hvy. Disruptor Cannon | -6/Data Miner | Free Antigrav System | -6/Data Miner | Free Biometal Leg | -6/Data Miner | Free Robot Schematics ------------------ S-27 Virus | -7/Zion | Archive Y-72 Warden | -7/Zion | Archive A-02 Transporter | -7/Zion | Archive B-36 Bruiser | -7/Zion | Archive A-15 Conveyor | -6/Data Miner | Free R-10 Processor | -6/Data Miner | Free L-41 Fighter | -6/Data Miner | Free Y-64 Sentinel | -6/Data Miner | Free X-72 Disruptor | -6/Data Miner | Free Fabricated ------------ Mak. Transmission Jammer | x1 | -6/Factory Cmb. Airjet | x2 | -6/Factory Cmb. Airjet | x2 | -6/Factory Alien Tech Used ----------------- None Achievements -------------- None Challenges ------------ None Game ------ Seed BiocellHellfireCompressor Manual? 0 Play Time 02:36:04 Cumulative 1038.6 hours Start 2022.04.09 @ 18:45:35 End 2022.04.10 @ 01:37:26 Sessions 5 Manual Loads 0 Difficulty Rogue Special Mode None Game No. 312 Rogue 312 Adventurer 0 Explorer 0 Win Type - Total 71 Types 44/4/8/6/4/1/2/1/1 Lore% 95 Gallery% 96 Achievement% 98 Wizard Run 0 Options --------- ASCII 0 Keyboard 1 Movement Arrows Keybinds 0 Fullscreen 1 Font 24/Smallcaps Map View 76x56 Tactical HUD 1 Map Filters NONE Filters NONE Steam 1 RUN: b416ae13-e6ec-42f6-bedb-a5dc19b34b1e